bitfinex-derivatives/quotes_BTCF0:USTF0_20241023
["timestamp","ask_amount","ask_price","bid_price","bid_amount"]
[1729700395604,0.07569,66109.0,66107.0,0.21522691]
[1729700395784,0.07569,66108.0,66107.0,0.21522691]
[1729700395985,0.07569,66108.0,66107.0,0.17]
[1729700396187,0.07569,66108.0,66107.0,0.21524682]
[1729700396387,0.07569,66108.0,66107.0,0.17]
[1729700398190,0.0163966,66114.0,66107.0,0.17]
[1729700398499,0.13596,66121.0,66108.0,0.06034709]
[1729700398500,0.075687,66111.0,66108.0,0.06034709]
[1729700399210,0.075685,66113.0,66108.0,0.13603609]
[1729700399497,0.075685,66113.0,66112.0,0.06034709]
[1729700399693,0.075679,66118.0,66113.0,0.075684]
[1729700399895,0.075676,66121.0,66117.0,0.24568]
[1729700400098,0.075676,66121.0,66120.0,0.17]
[1729700400901,0.075677,66120.0,66118.0,0.06042716]
[1729700401294,0.17,66126.0,66117.0,0.17]
[1729700401495,0.075675,66121.0,66119.0,0.04535949]
[1729700401688,0.075675,66121.0,66118.0,0.04535949]
[1729700402299,0.075675,66121.0,66119.0,0.04535949]
[1729700403098,0.18613756,66126.0,66119.0,0.04535949]
[1729700403305,0.075676,66120.0,66118.0,0.04535949]
[1729700403901,0.075676,66120.0,66117.0,0.21535949]
[1729700404303,0.075676,66120.0,66118.0,0.04535949]
[1729700405095,0.075678,66119.0,66118.0,0.04535949]
[1729700405304,0.075678,66119.0,66118.0,0.04536625]
[1729700405491,0.075687,66111.0,66110.0,0.06042716]
[1729700405695,0.075687,66111.0,66108.0,0.06042716]
[1729700405696,0.17,66111.0,66108.0,0.06042716]
[1729700405893,0.075692,66106.0,66105.0,0.06042716]
[1729700406097,0.075692,66106.0,66097.0,0.0515]
[1729700406098,0.17,66106.0,66104.0,0.06042716]
[1729700406300,0.075695,66104.0,66103.0,0.06042716]
[1729700406800,0.07569,66108.0,66103.0,0.23042716]
[1729700407004,0.1525,66110.0,66104.0,0.06049898]
[1729700407304,0.075692,66107.0,66104.0,0.06049898]
[1729700407800,0.075694,66105.0,66104.0,0.06049898]
[1729700407990,0.075695,66104.0,66103.0,0.06049898]
[1729700408191,0.075695,66104.0,66098.0,0.0751024]
[1729700408192,0.0757,66099.0,66098.0,0.06049898]
[1729700408392,0.075703,66097.0,66096.0,0.06049898]
[1729700408698,0.075703,66097.0,66080.0,0.0506]
[1729700408699,0.075707,66093.0,66088.0,0.06049898]
[1729700408901,0.245707,66093.0,66085.0,0.06049898]
[1729700409508,0.07571,66091.0,66080.0,0.06049898]
[1729700409711,0.07571,66091.0,66077.0,0.0549]
[1729700409712,0.075721,66081.0,66079.0,0.06049898]
[1729700410000,0.054,66090.0,66077.0,0.0549]
[1729700410001,0.17,66083.0,66077.0,0.0549]
[1729700410589,0.075724,66079.0,66077.0,0.0549]
[1729700410793,0.075724,66078.0,66077.0,0.0549]
[1729700415292,0.09236377,66078.0,66077.0,0.0549]
[1729700417313,0.075738,66066.0,66062.0,0.1064]
[1729700417604,0.075737,66067.0,66064.0,0.17]
[1729700417811,0.075738,66066.0,66058.0,0.01648788]
[1729700417999,0.17,66068.0,66050.0,0.17]
[1729700418299,0.075749,66057.0,66050.0,0.17]
[1729700418502,0.075744,66061.0,66054.0,0.17]
[1729700418801,0.075744,66061.0,66058.0,0.17]
[1729700419307,0.075746,66060.0,66058.0,0.17]
[1729700420501,0.13188,66063.0,66058.0,0.17]
[1729700420911,0.075743,66062.0,66058.0,0.17]
[1729700421109,0.07574,66065.0,66058.0,0.17]
[1729700421502,0.18628518,66068.0,66058.0,0.17]
[1729700421697,0.075741,66064.0,66061.0,0.17]
[1729700421897,0.18628518,66068.0,66061.0,0.17]
[1729700421898,0.01628518,66068.0,66061.0,0.17]
[1729700422108,0.13188,66074.0,66067.0,0.17]
[1729700422302,0.075731,66073.0,66067.0,0.17]
[1729700422506,0.075731,66073.0,66071.0,0.17]
[1729700422709,0.075731,66073.0,66068.0,0.17]
[1729700425317,0.075732,66072.0,66068.0,0.17]
[1729700425502,0.17,66069.0,66058.0,0.17]
[1729700425813,0.075753,66053.0,66048.0,0.0523]
[1729700426114,0.245753,66053.0,66048.0,0.0523]
[1729700426901,0.075756,66051.0,66048.0,0.0523]
[1729700427308,0.075752,66054.0,66048.0,0.0523]
[1729700427508,0.17,66052.0,66043.0,0.0515]
[1729700427702,0.17,66049.0,66043.0,0.0515]
[1729700427904,0.075763,66045.0,66043.0,0.0515]
[1729700428109,0.075756,66051.0,66044.0,0.17]
[1729700428420,0.075756,66051.0,66048.0,0.17]
[1729700431116,0.075757,66050.0,66048.0,0.17]
[1729700431411,0.075758,66049.0,66044.0,0.17]
[1729700432717,0.17,66045.0,66043.0,0.0515]
[1729700432918,0.17,66050.0,66043.0,0.0515]
[1729700433121,0.075761,66047.0,66043.0,0.0515]
[1729700433424,0.075758,66049.0,66043.0,0.0515]
[1729700433725,0.075762,66045.0,66043.0,0.0515]
[1729700434217,0.17,66050.0,66043.0,0.0515]
[1729700434423,0.075763,66044.0,66043.0,0.0515]
[1729700435115,0.075763,66044.0,66036.0,0.0534]
[1729700435116,0.17,66046.0,66036.0,0.0534]
[1729700435320,0.075772,66037.0,66036.0,0.0534]
[1729700435920,0.17,66038.0,66029.0,0.1255024]
[1729700435921,0.075777,66032.0,66029.0,0.06049898]
[1729700436121,0.202246,66042.0,66027.0,0.06049898]
[1729700436122,0.17,66030.0,66027.0,0.06049898]
[1729700436429,0.0988,66037.0,66027.0,0.06049898]
[1729700436623,0.075776,66034.0,66030.0,0.17]
[1729700437121,0.075776,66034.0,66030.0,0.23049898]
[1729700437317,0.075776,66034.0,66031.0,0.06049898]
[1729700437723,0.12648,66042.0,66032.0,0.06049898]
[1729700437724,0.245776,66033.0,66032.0,0.06049898]
[1729700438019,0.075776,66033.0,66032.0,0.06049898]
[1729700438314,0.245776,66033.0,66032.0,0.06049898]
[1729700438522,0.245776,66033.0,66028.0,0.075782]
[1729700438708,0.245776,66033.0,66028.0,0.1508844]
[1729700439332,0.075776,66033.0,66029.0,0.0751024]
[1729700439523,0.075776,66033.0,66030.0,0.0751024]
[1729700440218,0.01594473,66034.0,66030.0,0.3208814]
[1729700440415,0.075776,66034.0,66030.0,0.2451024]
[1729700440931,0.075776,66034.0,66030.0,0.17]
[1729700441218,0.075776,66034.0,66030.0,0.2451024]
[1729700441423,0.075776,66034.0,66029.0,0.1508824]
[1729700441623,0.075776,66034.0,66030.0,0.19035043]
[1729700441825,0.075776,66034.0,66030.0,0.0751024]
[1729700442026,0.075776,66034.0,66030.0,0.1508824]
[1729700442614,0.17,66031.0,66028.0,0.0751024]
[1729700442920,0.075783,66027.0,66010.0,0.09012289]
[1729700443121,0.17,66011.0,66001.0,0.09012289]
[1729700443318,0.17,66004.0,66003.0,0.09012289]
[1729700443520,0.17,66004.0,66003.0,0.11531799]
[1729700443910,0.24805624,66027.0,66003.0,0.11531799]
[1729700443911,0.17,66008.0,66003.0,0.11531799]
[1729700444113,0.12652,66015.0,66004.0,0.11403681]
[1729700444311,0.17,66013.0,66002.0,0.17]
[1729700444515,0.12652,66015.0,66012.0,0.17]
[1729700444822,0.1426951,66015.0,66008.0,0.17]
[1729700445028,0.1426951,66015.0,66001.0,0.19332289]
[1729700445029,0.3126951,66015.0,66001.0,0.19332289]
[1729700445232,0.3126951,66015.0,66007.0,0.17]
[1729700445233,0.0161751,66015.0,66007.0,0.17]
[1729700445533,0.12652,66016.0,66011.0,0.17]
[1729700446017,0.12652,66016.0,66002.0,0.09012289]
[1729700446018,0.14272125,66016.0,66007.0,0.17]
[1729700446217,0.14272125,66016.0,66011.0,0.17]
[1729700446619,0.01620125,66016.0,66015.0,0.17]
[1729700446816,0.12652,66016.0,66015.0,0.17]
[1729700447023,0.12652,66018.0,66015.0,0.17]
[1729700447730,0.01605744,66021.0,66015.0,0.17]
[1729700447925,0.177085,66026.0,66020.0,0.17]
[1729700447926,0.12656,66022.0,66020.0,0.17]
[1729700448231,0.12656,66022.0,66016.0,0.17]
[1729700448418,0.18619634,66025.0,66016.0,0.17]
[1729700448730,0.17,66019.0,66008.0,0.17]
[1729700448929,0.075797,66016.0,66011.0,0.17]
[1729700450533,0.12656,66018.0,66014.0,0.17]
[1729700451028,0.075791,66020.0,66014.0,0.17]
[1729700451230,0.202351,66020.0,66019.0,0.17]
[1729700451629,0.202351,66020.0,66016.0,0.17]
[1729700452425,0.075791,66020.0,66016.0,0.17]
[1729700453819,0.18664279,66022.0,66011.0,0.17]
[1729700453820,0.17,66018.0,66011.0,0.17]
[1729700454135,0.17,66018.0,66009.0,0.0521]
[1729700454355,0.075799,66013.0,66007.0,0.17]
[1729700454635,0.245803,66010.0,66008.0,0.11454639]
[1729700454836,0.245803,66010.0,66003.0,0.17]
[1729700454837,0.29656,66010.0,66003.0,0.17]
[1729700455030,0.075806,66007.0,66004.0,0.11477823]
[1729700455340,0.075807,66006.0,66005.0,0.11477823]
[1729700455634,0.12656,66010.0,66005.0,0.11477823]
[1729700455830,0.12656,66010.0,66009.0,0.17]
[1729700456133,0.09770767,66010.0,66009.0,0.17]
[1729700457129,0.09770767,66010.0,65999.0,0.26012289]
[1729700457130,0.075811,66003.0,65999.0,0.26012289]
[1729700457429,0.202369,66005.0,66002.0,0.17]
[1729700457635,0.09248727,66010.0,66002.0,0.17]
[1729700457821,0.075805,66008.0,66007.0,0.17]
[1729700458022,0.0518,66011.0,66007.0,0.17]
[1729700458326,0.0518,66011.0,65997.0,0.09012289]
[1729700458327,0.075796,66016.0,66010.0,0.17]
[1729700458528,0.0517,66020.0,66015.0,0.17]
[1729700458839,0.075796,66016.0,66012.0,0.17]
[1729700459024,0.0517,66020.0,66015.0,0.17]
[1729700459025,0.0676912,66020.0,66015.0,0.17]
[1729700459228,0.12656,66019.0,66015.0,0.17]
[1729700459425,0.0159912,66020.0,66015.0,0.17]
[1729700459632,0.07578,66030.0,66019.0,0.17]
[1729700459827,0.12656,66031.0,66026.0,0.17]
[1729700460028,0.075781,66029.0,66026.0,0.17]
[1729700460531,0.07805624,66027.0,66023.0,0.17]
[1729700460731,0.17227324,66027.0,66020.0,0.0529]
[1729700461031,0.17227324,66027.0,65999.0,0.10514337]
[1729700461032,0.075791,66020.0,66015.0,0.17]
[1729700461436,0.17,66017.0,66009.0,0.17]
[1729700461742,0.17,66017.0,66007.0,0.0469]
[1729700461743,0.17,66012.0,66010.0,0.11427908]
[1729700462041,0.12656,66019.0,66010.0,0.17]
[1729700462339,0.12656,66019.0,66007.0,0.0469]
[1729700462340,0.12656,66021.0,66017.0,0.17]
[1729700462530,0.08861709,66021.0,66017.0,0.17]
[1729700462841,0.245788,66023.0,66014.0,0.17]
[1729700463140,0.245788,66023.0,66015.0,0.11460093]
[1729700463341,0.245788,66023.0,66016.0,0.11460093]
[1729700463639,0.245788,66023.0,66011.0,0.09012289]
[1729700463640,0.17,66018.0,66011.0,0.09012289]
[1729700463828,0.17,66015.0,66012.0,0.11464702]
[1729700464027,0.17,66018.0,66013.0,0.11464702]
[1729700464233,0.075791,66020.0,66014.0,0.11464702]
[1729700464430,0.075791,66020.0,66015.0,0.11464702]
[1729700464740,0.17,66022.0,66016.0,0.11472806]
[1729700464932,0.17,66022.0,66013.0,0.17]
[1729700465135,0.1272,66025.0,66021.0,0.17]
[1729700465339,0.17,66023.0,66014.0,0.17]
[1729700465636,0.17,66023.0,66015.0,0.11475661]
[1729700465831,0.17,66023.0,66016.0,0.11475661]
[1729700466039,0.075792,66020.0,66017.0,0.11478118]
[1729700466236,0.17,66018.0,66012.0,0.09012289]
[1729700466434,0.075795,66017.0,66013.0,0.11479465]
[1729700466626,0.075795,66017.0,66014.0,0.11479465]
[1729700466827,0.075795,66017.0,66011.0,0.09012289]
[1729700466828,0.075795,66017.0,66015.0,0.11479465]
[1729700467043,0.075795,66017.0,66011.0,0.09012289]
[1729700467231,0.17,66021.0,66012.0,0.11477656]
[1729700467538,0.17,66021.0,66011.0,0.09012289]
[1729700467539,0.075796,66016.0,66013.0,0.11477656]
[1729700467844,0.17,66017.0,66007.0,0.0469]
[1729700468031,0.17,66017.0,66008.0,0.11483523]
[1729700468338,0.075799,66014.0,66009.0,0.11483523]
[1729700468532,0.075799,66014.0,66010.0,0.11483523]
[1729700468734,0.075799,66014.0,66007.0,0.0469]
[1729700468925,0.075799,66013.0,66008.0,0.11491253]
[1729700469128,0.0758,66012.0,66007.0,0.0469]
[1729700469350,0.075804,66009.0,66008.0,0.11507982]
[1729700470442,0.075804,66009.0,66008.0,0.11508836]
[1729700472641,0.17,66011.0,66008.0,0.11508836]
[1729700472847,0.01650049,66014.0,66010.0,0.17]
[1729700473140,0.075794,66018.0,66011.0,0.20521125]
[1729700473342,0.1272,66021.0,66017.0,0.0757681]
[1729700473552,0.075791,66020.0,66017.0,0.0757681]
[1729700473737,0.17,66025.0,66017.0,0.0757681]
[1729700474043,0.01645441,66025.0,66024.0,0.0757681]
[1729700474232,0.075785,66025.0,66024.0,0.11557473]
[1729700474432,0.17,66026.0,66023.0,0.0757596]
[1729700474741,0.17,66026.0,66020.0,0.0757596]
[1729700474936,0.17,66021.0,66019.0,0.0757596]
[1729700475135,0.075792,66019.0,66018.0,0.0757596]
[1729700475332,0.245792,66019.0,66018.0,0.0757596]
[1729700475634,0.075793,66018.0,66017.0,0.0757596]
[1729700475844,0.075793,66018.0,66017.0,0.1913334]
[1729700476052,0.075794,66017.0,66016.0,0.0757596]
[1729700476346,0.17,66017.0,66014.0,0.0757596]
[1729700476538,0.075797,66015.0,66014.0,0.0757596]
[1729700476737,0.075797,66015.0,66013.0,0.0757596]
[1729700477043,0.202992,66019.0,66013.0,0.0757596]
[1729700477236,0.1272,66021.0,66018.0,0.17]
[1729700477437,0.1272,66026.0,66019.0,0.097]
[1729700477735,0.075791,66020.0,66017.0,0.0757596]
[1729700477936,0.075791,66020.0,66016.0,0.0757596]
[1729700478430,0.245787,66024.0,66016.0,0.0757596]
[1729700478631,0.202988,66023.0,66016.0,0.0757596]
[1729700478845,0.07579,66022.0,66016.0,0.0757596]
[1729700479043,0.07579,66021.0,66015.0,0.0757596]
[1729700479353,0.075797,66015.0,66014.0,0.0757596]
[1729700479649,0.075798,66014.0,66013.0,0.00084]
[1729700479849,0.075801,66011.0,66010.0,0.0757596]
[1729700480545,0.075801,66011.0,66009.0,0.0757596]
[1729700480841,0.075801,66011.0,66010.0,0.0757596]
[1729700481146,0.075802,66010.0,66009.0,0.0757596]
[1729700481453,0.245802,66010.0,66009.0,0.0757596]
[1729700481650,0.075806,66007.0,66006.0,0.0757596]
[1729700481940,0.245802,66010.0,66001.0,0.0757596]
[1729700482142,0.075813,66001.0,65996.0,0.09012289]
[1729700482341,0.075813,66001.0,66000.0,0.07576134]
[1729700482547,0.17,66004.0,65998.0,0.07576134]
[1729700482548,0.075815,65999.0,65998.0,0.07576134]
[1729700482745,0.17,66004.0,65998.0,0.07576134]
[1729700483047,0.075812,66002.0,65998.0,0.07576134]
[1729700483249,0.075812,66002.0,65999.0,0.17]
[1729700483747,0.075811,66003.0,65999.0,0.17]
[1729700484250,0.01660487,66004.0,65999.0,0.17]
[1729700484440,0.17,66009.0,65999.0,0.17]
[1729700484441,0.1272,66006.0,65999.0,0.17]
[1729700484642,0.14346813,66006.0,65999.0,0.17]
[1729700484844,0.07581,66004.0,65999.0,0.17]
[1729700485051,0.1272,66006.0,65999.0,0.17]
[1729700485245,0.1272,66005.0,66001.0,0.17]
[1729700485556,0.203009,66005.0,65998.0,0.07576134]
[1729700486038,0.01670681,66006.0,66004.0,0.17]
[1729700486241,0.1272,66009.0,66005.0,0.17]
[1729700486650,0.075805,66008.0,66002.0,0.17]
[1729700487355,0.2972,66011.0,66002.0,0.17]
[1729700487555,0.31356346,66011.0,66002.0,0.17]
[1729700488050,0.31356346,66011.0,66000.0,0.07576134]
[1729700488051,0.075808,66006.0,66000.0,0.07576134]
[1729700488647,0.09216546,66011.0,66002.0,0.17]
[1729700488957,0.0932,66017.0,66010.0,0.17]
[1729700489153,0.202989,66022.0,66016.0,0.17]
[1729700489359,0.0464,66026.0,66021.0,0.17]
[1729700489651,0.075784,66026.0,66021.0,0.17]
[1729700489848,0.075784,66026.0,66017.0,0.17]
[1729700489849,0.075788,66023.0,66017.0,0.17]
[1729700490151,0.075788,66023.0,66016.0,0.07576134]
[1729700490152,0.0184127,66027.0,66021.0,0.17]
[1729700490465,0.0184127,66027.0,66024.0,0.17]
[1729700490950,0.0184127,66027.0,66025.0,0.0467]
[1729700491947,0.17,66026.0,66018.0,0.0467]
[1729700492156,0.07579,66021.0,66018.0,0.0467]
[1729700492352,0.17,66019.0,66012.0,0.07576134]
[1729700492660,0.17,66019.0,66011.0,0.17]
[1729700492661,0.075797,66015.0,66011.0,0.17]
[1729700493245,0.0476,66022.0,66009.0,0.07576134]
[1729700493246,0.12548,66026.0,66014.0,0.17]
[1729700493547,0.075791,66021.0,66014.0,0.17]
[1729700496655,0.075788,66023.0,66014.0,0.17]
[1729700496863,0.075796,66016.0,66014.0,0.17]
[1729700497055,0.075796,66016.0,66012.0,0.0461]
[1729700497261,0.17,66020.0,66012.0,0.0461]
[1729700497461,0.075799,66013.0,66012.0,0.0461]
[1729700497650,0.12548,66022.0,66013.0,0.17]
[1729700497846,0.075794,66018.0,66013.0,0.17]
[1729700498050,0.075795,66017.0,66013.0,0.17]
[1729700498255,0.075797,66016.0,66013.0,0.17]
[1729700498451,0.075797,66016.0,66006.0,0.0473]
[1729700498452,0.17,66016.0,66006.0,0.12306134]
[1729700498651,0.075801,66012.0,66006.0,0.0473]
[1729700498858,0.17,66016.0,66006.0,0.0473]
[1729700499163,0.075803,66010.0,66006.0,0.0473]
[1729700499353,0.17,66016.0,66006.0,0.0473]
[1729700499552,0.17,66016.0,66002.0,0.0932]
[1729700499553,0.075808,66005.0,66002.0,0.0467]
[1729700499753,0.075812,66003.0,66000.0,0.07576134]
[1729700499968,0.075812,66003.0,65998.0,0.07576134]
[1729700500156,0.075815,66000.0,65997.0,0.17]
[1729700500354,0.075816,65998.0,65996.0,0.07576134]
[1729700500656,0.075818,65997.0,65994.0,0.07576134]
[1729700500861,0.075819,65996.0,65993.0,0.24803443]
[1729700501352,0.075814,66000.0,65993.0,0.24803443]
[1729700501553,0.09249856,66004.0,65999.0,0.17]
[1729700501753,0.075804,66009.0,66003.0,0.17]
[1729700501961,0.12548,66012.0,66007.0,0.17]
[1729700502166,0.075805,66008.0,66004.0,0.17]
[1729700502371,0.14216529,66012.0,66007.0,0.17]
[1729700502556,0.01668529,66012.0,66007.0,0.17]
[1729700502864,0.075794,66018.0,66011.0,0.17]
[1729700503068,0.075794,66018.0,66006.0,0.06052688]
[1729700503069,0.12548,66017.0,66016.0,0.17]
[1729700503368,0.12548,66017.0,66008.0,0.06052688]
[1729700503369,0.201274,66017.0,66012.0,0.17]
[1729700503667,0.01619324,66018.0,66009.0,0.15182688]
[1729700503668,0.17,66015.0,66009.0,0.15182688]
[1729700503870,0.17,66015.0,66007.0,0.06052688]
[1729700504058,0.17,66015.0,66006.0,0.23052688]
[1729700504255,0.17,66015.0,66007.0,0.06052688]
[1729700504665,0.0758,66013.0,66007.0,0.06052688]
[1729700504870,0.075814,66000.0,65999.0,0.06053432]
[1729700505162,0.075814,66000.0,65990.0,0.09012289]
[1729700505163,0.30396,66000.0,65993.0,0.07576134]
[1729700505359,0.24582,65995.0,65992.0,0.04258945]
[1729700505565,0.13396,66000.0,65991.0,0.17]
[1729700505566,0.075815,66000.0,65991.0,0.17]
[1729700505752,0.13396,65999.0,65991.0,0.17]
[1729700505959,0.17,65997.0,65988.0,0.0445]
[1729700506466,0.17,65992.0,65988.0,0.0445]
[1729700506762,0.209775,65999.0,65988.0,0.2145]
[1729700506969,0.075815,65999.0,65992.0,0.17]
[1729700507162,0.075815,65999.0,65988.0,0.2145]
[1729700508359,0.01620326,66000.0,65988.0,0.0445]
[1729700508564,0.13396,66003.0,65992.0,0.17]
[1729700508766,0.13396,66003.0,65993.0,0.0481]
[1729700509071,0.17,66000.0,65993.0,0.0481]
[1729700511672,0.17,65997.0,65993.0,0.0481]
[1729700511864,0.075819,65996.0,65988.0,0.0445]
[1729700513275,0.17,65997.0,65988.0,0.0445]
[1729700513975,0.075815,65999.0,65992.0,0.17]
[1729700515875,0.18603533,66000.0,65992.0,0.17]
[1729700516080,0.075817,65998.0,65988.0,0.2145]
[1729700516283,0.245819,65996.0,65988.0,0.2145]
[1729700517079,0.17,65992.0,65988.0,0.0445]
[1729700518579,0.17,65992.0,65977.0,0.09238225]
[1729700518580,0.17,65989.0,65974.0,0.0923965]
[1729700518784,0.075829,65987.0,65981.0,0.17]
[1729700518977,0.075829,65987.0,65984.0,0.17]
[1729700519280,0.1587614,66003.0,65984.0,0.17]
[1729700519281,0.14232,65999.0,65984.0,0.17]
[1729700519483,0.075823,65993.0,65992.0,0.17]
[1729700519888,0.075823,65993.0,65988.0,0.17]
[1729700521477,0.075823,65992.0,65988.0,0.17]
[1729700521664,0.075824,65991.0,65985.0,0.17]
[1729700521882,0.18752,65998.0,65980.0,0.0446]
[1729700521883,0.17,65987.0,65980.0,0.0446]
[1729700522471,0.17,65987.0,65984.0,0.17]
[1729700522472,0.075829,65987.0,65984.0,0.17]
[1729700522783,0.075835,65982.0,65980.0,0.0446]
[1729700522985,0.03787503,65982.0,65980.0,0.0446]
[1729700523685,0.075837,65980.0,65979.0,0.0442]
[1729700524075,0.075833,65984.0,65979.0,0.2142]
[1729700524276,0.075832,65984.0,65983.0,0.17]
[1729700524480,0.075836,65981.0,65980.0,0.17]
[1729700524681,0.17,65981.0,65963.0,0.09012289]
[1729700524981,0.075838,65979.0,65961.0,0.17]
[1729700525172,0.17,65973.0,65964.0,0.17]
[1729700525374,0.17,65966.0,65947.0,0.0447]
[1729700525572,0.0449,65965.0,65960.0,0.04533635]
[1729700525878,0.0449,65965.0,65962.0,0.04533635]
[1729700526268,0.0449,65965.0,65950.0,0.00379]
[1729700526269,0.075858,65962.0,65961.0,0.04533777]
[1729700526482,0.075858,65962.0,65960.0,0.04531003]
[1729700526783,0.075858,65962.0,65959.0,0.17]
[1729700526784,0.0449,65965.0,65959.0,0.17]
[1729700526982,0.06162779,65965.0,65959.0,0.17]
[1729700527180,0.01672779,65965.0,65962.0,0.17]
[1729700527383,0.17,65968.0,65958.0,0.17]
[1729700527580,0.17,65964.0,65958.0,0.17]
[1729700527787,0.17,65964.0,65961.0,0.04531733]
[1729700528080,0.17,65964.0,65963.0,0.04531733]
[1729700528275,0.17,65964.0,65958.0,0.04531461]
[1729700528276,0.18,65964.0,65958.0,0.04531461]
[1729700528475,0.14988,65971.0,65938.0,0.00227498]
[1729700528476,0.18,65959.0,65947.0,0.18]
[1729700528685,0.18,65959.0,65951.0,0.18]
[1729700528874,0.075865,65956.0,65951.0,0.18]
[1729700529067,0.075861,65959.0,65954.0,0.17]
[1729700529674,0.162157,65963.0,65958.0,0.17]
[1729700529885,0.17,65964.0,65946.0,0.17379]
[1729700529886,0.044,65977.0,65963.0,0.075856]
[1729700530078,0.17,65984.0,65976.0,0.17]
[1729700530273,0.17,65984.0,65964.0,0.0416]
[1729700530274,0.075844,65974.0,65964.0,0.0416]
[1729700530482,0.17,65973.0,65964.0,0.17]
[1729700530690,0.17,65972.0,65962.0,0.00227398]
[1729700530888,0.075841,65977.0,65969.0,0.17]
[1729700531183,0.075841,65977.0,65972.0,0.17]
[1729700531377,0.0422,65983.0,65963.0,0.0416]
[1729700531378,0.075835,65982.0,65976.0,0.17]
[1729700531683,0.18640884,65983.0,65976.0,0.17]
[1729700532079,0.18640884,65983.0,65977.0,0.0444]
[1729700532274,0.0418,65993.0,65980.0,0.17]
[1729700532275,0.075829,65987.0,65980.0,0.17]
[1729700532481,0.17,65991.0,65983.0,0.17]
[1729700532784,0.01669212,65991.0,65983.0,0.17]
[1729700532979,0.245828,65988.0,65978.0,0.0416]
[1729700533591,0.17,65988.0,65980.0,0.17]
[1729700533895,0.15788,65993.0,65977.0,0.0444]
[1729700533896,0.07583,65986.0,65977.0,0.0444]
[1729700534192,0.075834,65983.0,65977.0,0.0444]
[1729700534371,0.17,65984.0,65977.0,0.0444]
[1729700534576,0.17,65988.0,65978.0,0.17]
[1729700534783,0.17,65988.0,65977.0,0.0444]
[1729700534784,0.01659071,65993.0,65985.0,0.17]
[1729700535086,0.075815,65999.0,65992.0,0.17]
[1729700535286,0.075815,65999.0,65993.0,0.043]
[1729700535584,0.075816,65998.0,65994.0,0.17]
[1729700535789,0.17,65995.0,65978.0,0.07546887]
[1729700535974,0.01636989,66003.0,65958.0,0.07546887]
[1729700535975,0.075856,65964.0,65958.0,0.07546887]
[1729700536178,0.17,65987.0,65959.0,0.17]
[1729700536179,0.17,65971.0,65959.0,0.17]
[1729700536478,0.117322,65994.0,65964.0,0.26]
[1729700536479,0.0413,65976.0,65964.0,0.26]
[1729700536674,0.07584,65978.0,65965.0,0.075854]
[1729700536878,0.07584,65977.0,65964.0,0.26]
[1729700537080,0.26,65980.0,65965.0,0.075853]
[1729700537486,0.075839,65978.0,65965.0,0.075853]
[1729700537784,0.26,65980.0,65964.0,0.26]
[1729700537785,0.07584,65977.0,65964.0,0.26]
[1729700538089,0.075839,65979.0,65965.0,0.075854]
[1729700538281,0.0409,65985.0,65969.0,0.26]
[1729700538282,0.3009,65985.0,65969.0,0.26]
[1729700538475,0.26,65985.0,65970.0,0.0425]
[1729700538680,0.335838,65980.0,65970.0,0.0425]
[1729700538879,0.26,65980.0,65970.0,0.0425]
[1729700539191,0.26,65980.0,65965.0,0.0436]
[1729700539494,0.075841,65977.0,65966.0,0.0432]
[1729700539678,0.26,65980.0,65966.0,0.0432]
[1729700539679,0.075836,65981.0,65969.0,0.26]
[1729700539880,0.075838,65979.0,65969.0,0.26]
[1729700540474,0.26,65985.0,65969.0,0.26]
[1729700540776,0.075837,65980.0,65974.0,0.26]
[1729700540975,0.335832,65985.0,65970.0,0.075848]
[1729700541287,0.075832,65985.0,65976.0,0.26]
[1729700541588,0.075832,65984.0,65977.0,0.0447]
[1729700541781,0.075837,65980.0,65977.0,0.0447]
[1729700542480,0.26,65985.0,65977.0,0.0447]
[1729700542481,0.075835,65982.0,65977.0,0.0447]
[1729700542682,0.075836,65981.0,65977.0,0.0447]
[1729700542989,0.075838,65980.0,65977.0,0.0447]
[1729700543598,0.1674,65988.0,65966.0,0.07546887]
[1729700543599,0.26,65978.0,65966.0,0.07546887]
[1729700543885,0.1674,65988.0,65955.0,0.00227424]
[1729700543886,0.075853,65966.0,65956.0,0.0416]
[1729700544089,0.075855,65964.0,65956.0,0.0416]
[1729700544292,0.075856,65963.0,65956.0,0.0416]
[1729700544478,0.075855,65965.0,65956.0,0.3016]
[1729700544795,0.0438,65977.0,65963.0,0.26]
[1729700544796,0.075843,65975.0,65963.0,0.26]
[1729700544996,0.0438,65977.0,65963.0,0.26]
[1729700544997,0.075844,65974.0,65963.0,0.26]
[1729700545187,0.0438,65977.0,65963.0,0.26]
[1729700545380,0.31990918,65977.0,65963.0,0.26]
[1729700545587,0.075844,65974.0,65963.0,0.26]
[1729700545991,0.3038,65977.0,65963.0,0.26]
[1729700546285,0.757833,66028.0,65962.0,0.0434]
[1729700546286,0.26,65988.0,65974.0,0.26]
[1729700546486,0.01658351,65987.0,65975.0,0.0446]
[1729700546680,0.075835,65982.0,65975.0,0.0874]
[1729700547086,0.07583,65986.0,65975.0,0.0874]
[1729700547295,0.075791,66020.0,65975.0,0.0874]
[1729700547296,0.18744,65998.0,65983.0,0.26]
[1729700547490,0.075821,65994.0,65983.0,0.26]
[1729700547698,0.26,65993.0,65978.0,0.26]